[Event "Titled Tuesday Blitz March 08 Late 2022"]
[White "Shuvalova, Polina"]
[Black "Svicevic, Rastko"]
[WhiteFideId "24171760"]
[BlackFideId "916315"]
[WhiteElo "2355"]
[BlackElo "2132"]
[Result "1-0"]
[Round "01"]
[TimeControl "180+1"]
[Date "2022.03.09"]
[WhiteClock "0:00:20"]
[BlackClock "0:00:01"]

1. d4 {[%clk 0:03:00]}  d5 {[%clk 0:02:58]} 2. Nf3 {[%clk 0:03:01]}  c6 {[%clk 0:02:57]} 3. Bf4 {[%clk 0:02:57]}  e6 {[%clk 0:02:56]} 4. e3 {[%clk 0:02:56]}  f5 {[%clk 0:02:56]} 5. h3 {[%clk 0:02:54]}  Nf6 {[%clk 0:02:56]} 6. Nbd2 {[%clk 0:02:53]}  Nbd7 {[%clk 0:02:46]} 7. Ne5 {[%clk 0:02:52]}  Nxe5 {[%clk 0:02:44]} 8. Bxe5 {[%clk 0:02:52]}  Bd6 {[%clk 0:02:42]} 9. Nf3 {[%clk 0:02:50]}  Bxe5 {[%clk 0:02:38]} 10. Nxe5 {[%clk 0:02:50]}  O-O {[%clk 0:02:35]} 11. Be2 {[%clk 0:02:50]}  Nd7 {[%clk 0:02:34]} 12. Nd3 {[%clk 0:02:38]}  c5 {[%clk 0:02:23]} 13. dxc5 {[%clk 0:02:29]}  Nxc5 {[%clk 0:02:23]} 14. Nxc5 {[%clk 0:02:29]}  Qa5+ {[%clk 0:02:24]} 15. c3 {[%clk 0:02:28]}  Qxc5 {[%clk 0:02:24]} 16. Qd4 {[%clk 0:02:29]}  Qd6 {[%clk 0:02:15]} 17. c4 {[%clk 0:02:17]}  Qb4+ {[%clk 0:02:12]} 18. Qd2 {[%clk 0:02:16]}  Qxd2+ {[%clk 0:02:08]} 19. Kxd2 {[%clk 0:02:17]}  Rd8 {[%clk 0:02:04]} 20. Rhd1 {[%clk 0:02:13]}  Bd7 {[%clk 0:01:56]} 21. cxd5 {[%clk 0:02:12]}  Bc6 {[%clk 0:01:56]} 22. Bf3 {[%clk 0:01:52]}  Bxd5 {[%clk 0:01:54]} 23. Bxd5 {[%clk 0:01:52]}  Rxd5+ {[%clk 0:01:54]} 24. Ke2 {[%clk 0:01:52]}  Rad8 {[%clk 0:01:50]} 25. Rxd5 {[%clk 0:01:52]}  Rxd5 {[%clk 0:01:51]} 26. Rc1 {[%clk 0:01:52]}  Rd7 {[%clk 0:01:47]} 27. Rc8+ {[%clk 0:01:51]}  Kf7 {[%clk 0:01:46]} 28. Ra8 {[%clk 0:01:51]}  b6 {[%clk 0:01:23]} 29. Rh8 {[%clk 0:01:50]}  Kg6 {[%clk 0:01:13]} 30. Re8 {[%clk 0:01:48]}  Kf6 {[%clk 0:01:13]} 31. Rh8 {[%clk 0:01:48]}  Kg6 {[%clk 0:01:13]} 32. Rc8 {[%clk 0:01:49]}  Kf6 {[%clk 0:01:10]} 33. a4 {[%clk 0:01:41]}  Rd5 {[%clk 0:00:56]} 34. b4 {[%clk 0:01:26]}  Rd7 {[%clk 0:00:49]} 35. Rc4 {[%clk 0:01:22]}  Ke5 {[%clk 0:00:46]} 36. b5 {[%clk 0:01:16]}  g5 {[%clk 0:00:35]} 37. Rc8 {[%clk 0:01:06]}  f4 {[%clk 0:00:31]} 38. Ra8 {[%clk 0:00:55]}  Kd5 {[%clk 0:00:28]} 39. Kf3 {[%clk 0:00:53]}  e5 {[%clk 0:00:24]} 40. Rc8 {[%clk 0:00:49]}  e4+ {[%clk 0:00:22]} 41. Kg4 {[%clk 0:00:49]}  fxe3 {[%clk 0:00:21]} 42. fxe3 {[%clk 0:00:49]}  Ke5 {[%clk 0:00:15]} 43. Kxg5 {[%clk 0:00:35]}  Rg7+ {[%clk 0:00:13]} 44. Kh6 {[%clk 0:00:33]}  Rxg2 {[%clk 0:00:14]} 45. h4 {[%clk 0:00:31]}  Rg3 {[%clk 0:00:08]} 46. Rc3 {[%clk 0:00:31]}  Rh3 {[%clk 0:00:07]} 47. h5 {[%clk 0:00:29]}  Kf5 {[%clk 0:00:07]} 48. Ra3 {[%clk 0:00:25]}  Kg4 {[%clk 0:00:06]} 49. Kxh7 {[%clk 0:00:23]}  Rxh5+ {[%clk 0:00:05]} 50. Kg6 {[%clk 0:00:24]}  Rd5 {[%clk 0:00:04]} 51. Kf6 {[%clk 0:00:19]}  Rd3 {[%clk 0:00:03]} 52. Ra1 {[%clk 0:00:20]}  Kf3 {[%clk 0:00:01]} 53. Ke5 {[%clk 0:00:20]} 1-0


[Site "https://www.chess.com"]

[Event "Titled Tuesday Blitz March 08 Late 2022"]
[White "Silva, Miguel Antonio Neto"]
[Black "Chyngyz, Sultai"]
[WhiteFideId "1911929"]
[BlackFideId "13803158"]
[WhiteElo "2204"]
[BlackElo "1365"]
[Result "1-0"]
[Round "01"]
[TimeControl "180+1"]
[Date "2022.03.09"]
[WhiteClock "0:00:40"]
[BlackClock "0:01:17"]

1. e4 {[%clk 0:02:52]}  c5 {[%clk 0:02:57]} 2. Nf3 {[%clk 0:02:51]}  d6 {[%clk 0:02:56]} 3. d4 {[%clk 0:02:48]}  cxd4 {[%clk 0:02:57]} 4. Nxd4 {[%clk 0:02:49]}  Nf6 {[%clk 0:02:57]} 5. Nc3 {[%clk 0:02:45]}  a6 {[%clk 0:02:57]} 6. Bg5 {[%clk 0:02:42]}  e6 {[%clk 0:02:57]} 7. f4 {[%clk 0:02:40]}  Be7 {[%clk 0:02:57]} 8. Qf3 {[%clk 0:02:36]}  Qc7 {[%clk 0:02:56]} 9. O-O-O {[%clk 0:02:33]}  O-O {[%clk 0:02:49]} 10. Be2 {[%clk 0:02:18]}  b5 {[%clk 0:02:46]} 11. e5 {[%clk 0:02:15]}  Bb7 {[%clk 0:02:43]} 12. exf6 {[%clk 0:02:14]}  Bxf3 {[%clk 0:02:37]} 13. fxe7 {[%clk 0:02:14]}  Re8 {[%clk 0:02:34]} 14. Bxf3 {[%clk 0:02:11]}  d5 {[%clk 0:02:33]} 15. f5 {[%clk 0:02:08]}  h6 {[%clk 0:02:27]} 16. fxe6 {[%clk 0:01:58]}  hxg5 {[%clk 0:02:11]} 17. exf7+ {[%clk 0:01:56]}  Kxf7 {[%clk 0:02:10]} 18. Bxd5+ {[%clk 0:01:54]}  Kg6 {[%clk 0:02:11]} 19. Bxa8 {[%clk 0:01:51]}  Rxe7 {[%clk 0:02:05]} 20. Nd5 {[%clk 0:01:47]}  Qc5 {[%clk 0:01:59]} 21. Nxe7+ {[%clk 0:01:46]}  Qxe7 {[%clk 0:02:00]} 22. Rhe1 {[%clk 0:01:41]}  Qc7 {[%clk 0:01:58]} 23. Be4+ {[%clk 0:01:34]}  Kh5 {[%clk 0:01:54]} 24. g3 {[%clk 0:01:27]}  Nd7 {[%clk 0:01:51]} 25. g4+ {[%clk 0:01:09]}  Kxg4 {[%clk 0:01:47]} 26. Bf5+ {[%clk 0:01:05]}  Kh5 {[%clk 0:01:43]} 27. Re8 {[%clk 0:01:02]}  Qf4+ {[%clk 0:01:33]} 28. Kb1 {[%clk 0:00:59]}  g4 {[%clk 0:01:22]} 29. Bxd7 {[%clk 0:00:55]}  b4 {[%clk 0:01:18]} 30. Rh8+ {[%clk 0:00:43]}  Kg6 {[%clk 0:01:17]} 31. Be8+ {[%clk 0:00:40]} 1-0


[Site "https://www.chess.com"]

[Event "Titled Tuesday Blitz March 08 Late 2022"]
[White "Sjugirov, Sanan"]
[Black "Petrovic, Aleksa"]
[WhiteFideId "4189302"]
[BlackFideId "967629"]
[WhiteElo "2602"]
[BlackElo "2245"]
[Result "0-1"]
[Round "01"]
[TimeControl "180+1"]
[Date "2022.03.08"]
[WhiteClock "0:00:08"]
[BlackClock "0:00:07"]

1. e4 {[%clk 0:02:57]}  e5 {[%clk 0:02:57]} 2. Nf3 {[%clk 0:02:57]}  Nc6 {[%clk 0:02:57]} 3. Bb5 {[%clk 0:02:57]}  a6 {[%clk 0:02:57]} 4. Ba4 {[%clk 0:02:57]}  Nf6 {[%clk 0:02:57]} 5. O-O {[%clk 0:02:58]}  b5 {[%clk 0:02:56]} 6. Bb3 {[%clk 0:02:58]}  Bc5 {[%clk 0:02:57]} 7. a4 {[%clk 0:02:51]}  Rb8 {[%clk 0:02:57]} 8. c3 {[%clk 0:02:47]}  d6 {[%clk 0:02:56]} 9. d4 {[%clk 0:02:47]}  Bb6 {[%clk 0:02:56]} 10. a5 {[%clk 0:02:45]}  Ba7 {[%clk 0:02:56]} 11. Be3 {[%clk 0:02:45]}  Ra8 {[%clk 0:02:35]} 12. dxe5 {[%clk 0:02:33]}  Nxe5 {[%clk 0:02:29]} 13. Nxe5 {[%clk 0:02:25]}  dxe5 {[%clk 0:02:30]} 14. Qxd8+ {[%clk 0:02:20]}  Kxd8 {[%clk 0:02:31]} 15. Bxa7 {[%clk 0:02:19]}  Rxa7 {[%clk 0:02:32]} 16. Bxf7 {[%clk 0:02:18]}  Nxe4 {[%clk 0:02:26]} 17. Ba2 {[%clk 0:01:43]}  Bf5 {[%clk 0:02:11]} 18. Re1 {[%clk 0:01:42]}  Re8 {[%clk 0:02:00]} 19. Na3 {[%clk 0:01:42]}  c6 {[%clk 0:01:53]} 20. Rad1+ {[%clk 0:01:31]}  Rd7 {[%clk 0:01:52]} 21. Bb1 {[%clk 0:01:26]}  Rxd1 {[%clk 0:01:43]} 22. Rxd1+ {[%clk 0:01:27]}  Kc7 {[%clk 0:01:43]} 23. Nc2 {[%clk 0:01:23]}  Nc5 {[%clk 0:01:25]} 24. Nb4 {[%clk 0:01:11]}  Bxb1 {[%clk 0:01:23]} 25. Rxb1 {[%clk 0:01:12]}  Rd8 {[%clk 0:01:01]} 26. Kf1 {[%clk 0:01:12]}  Kb7 {[%clk 0:00:48]} 27. Re1 {[%clk 0:01:10]}  e4 {[%clk 0:00:45]} 28. f3 {[%clk 0:00:38]}  exf3 {[%clk 0:00:20]} 29. gxf3 {[%clk 0:00:39]}  Rd7 {[%clk 0:00:20]} 30. Re3 {[%clk 0:00:26]}  Nb3 {[%clk 0:00:19]} 31. Nd3 {[%clk 0:00:27]}  Kc7 {[%clk 0:00:16]} 32. Ke2 {[%clk 0:00:26]}  Nxa5 {[%clk 0:00:16]} 33. Nc5 {[%clk 0:00:26]}  Rf7 {[%clk 0:00:16]} 34. Re8 {[%clk 0:00:15]}  Nc4 {[%clk 0:00:13]} 35. b3 {[%clk 0:00:15]}  Nb6 {[%clk 0:00:11]} 36. Nxa6+ {[%clk 0:00:11]}  Kd7 {[%clk 0:00:12]} 37. Rb8 {[%clk 0:00:11]}  Nd5 {[%clk 0:00:11]} 38. Nc5+ {[%clk 0:00:07]}  Kd6 {[%clk 0:00:08]} 39. Ne4+ {[%clk 0:00:07]}  Ke5 {[%clk 0:00:07]} 40. Re8+ {[%clk 0:00:06]}  Kf4 {[%clk 0:00:07]} 41. Re6 {[%clk 0:00:03]}  b4 {[%clk 0:00:04]} 42. c4 {[%clk 0:00:03]}  Nc3+ {[%clk 0:00:03]} 43. Nxc3 {[%clk 0:00:02]}  bxc3 {[%clk 0:00:04]} 44. Kd3 {[%clk 0:00:03]}  Rf6 {[%clk 0:00:03]} 45. Rxf6+ {[%clk 0:00:03]}  gxf6 {[%clk 0:00:04]} 46. Kxc3 {[%clk 0:00:03]}  Kxf3 {[%clk 0:00:05]} 47. b4 {[%clk 0:00:04]}  Ke4 {[%clk 0:00:05]} 48. b5 {[%clk 0:00:02]}  cxb5 {[%clk 0:00:06]} 49. cxb5 {[%clk 0:00:03]}  Kd5 {[%clk 0:00:06]} 50. Kd3 {[%clk 0:00:02]}  Kc5 {[%clk 0:00:06]} 51. Ke4 {[%clk 0:00:03]}  Kxb5 {[%clk 0:00:06]} 52. Kf5 {[%clk 0:00:03]}  Kc6 {[%clk 0:00:05]} 53. Kxf6 {[%clk 0:00:04]}  Kd6 {[%clk 0:00:06]} 54. h4 {[%clk 0:00:04]}  h5 {[%clk 0:00:06]} 55. Kf7 {[%clk 0:00:04]}  Ke5 {[%clk 0:00:05]} 56. Kg6 {[%clk 0:00:04]}  Ke6 {[%clk 0:00:05]} 57. Kg7 {[%clk 0:00:04]}  Kf5 {[%clk 0:00:04]} 58. Kf7 {[%clk 0:00:04]}  Kg4 {[%clk 0:00:04]} 59. Ke6 {[%clk 0:00:05]}  Kxh4 {[%clk 0:00:05]} 60. Ke5 {[%clk 0:00:06]}  Kg3 {[%clk 0:00:05]} 61. Ke4 {[%clk 0:00:07]}  h4 {[%clk 0:00:06]} 62. Ke3 {[%clk 0:00:08]}  h3 {[%clk 0:00:07]} 0-1


[Site "https://www.chess.com"]

[Event "Titled Tuesday Blitz March 08 Late 2022"]
[White "Suarez Uriel, Adrian"]
[Black "Jones, Gawain C B"]
[WhiteFideId "22230874"]
[BlackFideId "409561"]
[WhiteElo "2316"]
[BlackElo "2657"]
[Result "0-1"]
[Round "01"]
[TimeControl "180+1"]
[Date "2022.03.08"]
[WhiteClock "0:00:03"]
[BlackClock "0:00:12"]

1. e4 {[%clk 0:02:56]}  c5 {[%clk 0:02:58]} 2. Ne2 {[%clk 0:02:55]}  Nf6 {[%clk 0:02:56]} 3. Nbc3 {[%clk 0:02:55]}  g6 {[%clk 0:02:53]} 4. d4 {[%clk 0:02:53]}  cxd4 {[%clk 0:02:54]} 5. Nxd4 {[%clk 0:02:53]}  d6 {[%clk 0:02:52]} 6. Be3 {[%clk 0:02:35]}  Nc6 {[%clk 0:02:51]} 7. f3 {[%clk 0:02:35]}  Bg7 {[%clk 0:02:51]} 8. Qd2 {[%clk 0:02:36]}  O-O {[%clk 0:02:51]} 9. O-O-O {[%clk 0:02:34]}  d5 {[%clk 0:02:51]} 10. exd5 {[%clk 0:02:27]}  Nxd5 {[%clk 0:02:49]} 11. Nxc6 {[%clk 0:02:26]}  bxc6 {[%clk 0:02:49]} 12. Bd4 {[%clk 0:02:26]}  Bxd4 {[%clk 0:02:37]} 13. Qxd4 {[%clk 0:02:23]}  Qb6 {[%clk 0:02:31]} 14. Nxd5 {[%clk 0:02:18]}  cxd5 {[%clk 0:02:30]} 15. Qxb6 {[%clk 0:01:52]}  axb6 {[%clk 0:02:30]} 16. Rxd5 {[%clk 0:01:50]}  Be6 {[%clk 0:02:22]} 17. Rd1 {[%clk 0:01:45]}  Rxa2 {[%clk 0:02:21]} 18. Bd3 {[%clk 0:01:44]}  Kg7 {[%clk 0:02:00]} 19. Rhe1 {[%clk 0:01:44]}  h5 {[%clk 0:01:55]} 20. h4 {[%clk 0:01:43]}  Rd8 {[%clk 0:01:48]} 21. Kb1 {[%clk 0:01:20]}  Rda8 {[%clk 0:01:48]} 22. Kc1 {[%clk 0:01:20]}  Kf6 {[%clk 0:01:47]} 23. Re4 {[%clk 0:01:09]}  Rd8 {[%clk 0:01:46]} 24. Rb4 {[%clk 0:01:04]}  Rd6 {[%clk 0:01:43]} 25. Kb1 {[%clk 0:00:58]}  Ra5 {[%clk 0:01:42]} 26. Re1 {[%clk 0:00:56]}  g5 {[%clk 0:01:38]} 27. g3 {[%clk 0:00:50]}  gxh4 {[%clk 0:01:34]} 28. Rxh4 {[%clk 0:00:50]}  Ba2+ {[%clk 0:01:29]} 29. Kc1 {[%clk 0:00:50]}  e6 {[%clk 0:01:24]} 30. Reh1 {[%clk 0:00:47]}  Bd5 {[%clk 0:01:22]} 31. Rxh5 {[%clk 0:00:44]}  Bxf3 {[%clk 0:01:10]} 32. Rxa5 {[%clk 0:00:41]}  Bxh1 {[%clk 0:01:10]} 33. Rh5 {[%clk 0:00:40]}  Bf3 {[%clk 0:01:08]} 34. Rh4 {[%clk 0:00:40]}  Kg5 {[%clk 0:01:03]} 35. Rf4 {[%clk 0:00:38]}  Bh5 {[%clk 0:01:04]} 36. Kd2 {[%clk 0:00:34]}  f5 {[%clk 0:01:03]} 37. Ke3 {[%clk 0:00:31]}  Bg6 {[%clk 0:01:00]} 38. Rd4 {[%clk 0:00:30]}  Rc6 {[%clk 0:00:48]} 39. b4 {[%clk 0:00:29]}  e5 {[%clk 0:00:44]} 40. Rd5 {[%clk 0:00:29]}  Re6 {[%clk 0:00:43]} 41. c4 {[%clk 0:00:28]}  Kg4 {[%clk 0:00:43]} 42. c5 {[%clk 0:00:26]}  bxc5 {[%clk 0:00:42]} 43. bxc5 {[%clk 0:00:27]}  Kxg3 {[%clk 0:00:42]} 44. Rd6 {[%clk 0:00:28]}  f4+ {[%clk 0:00:37]} 45. Kd2 {[%clk 0:00:26]}  Bf7 {[%clk 0:00:20]} 46. Bc4 {[%clk 0:00:24]}  Re7 {[%clk 0:00:17]} 47. Bxf7 {[%clk 0:00:04]}  Rxf7 {[%clk 0:00:18]} 48. c6 {[%clk 0:00:04]}  f3 {[%clk 0:00:15]} 49. Rd7 {[%clk 0:00:04]}  Rf8 {[%clk 0:00:14]} 50. c7 {[%clk 0:00:04]}  f2 {[%clk 0:00:14]} 51. Rg7+ {[%clk 0:00:03]}  Kf3 {[%clk 0:00:12]} 0-1


[Site "https://www.chess.com"]

[Event "Titled Tuesday Blitz March 08 Late 2022"]
[White "Svane, Rasmus"]
[Black "Urbina Perez, Juan Antonio"]
[WhiteFideId "4657101"]
[BlackFideId "2217368"]
[WhiteElo "2645"]
[BlackElo "2192"]
[Result "1-0"]
[Round "01"]
[TimeControl "180+1"]
[Date "2022.03.08"]
[WhiteClock "0:01:04"]
[BlackClock "0:00:33"]

1. Nf3 {[%clk 0:03:00]}  d5 {[%clk 0:02:57]} 2. g3 {[%clk 0:03:00]}  Nf6 {[%clk 0:02:56]} 3. Bg2 {[%clk 0:02:53]}  Bf5 {[%clk 0:02:56]} 4. O-O {[%clk 0:02:51]}  e6 {[%clk 0:02:57]} 5. c4 {[%clk 0:02:46]}  c6 {[%clk 0:02:55]} 6. Qb3 {[%clk 0:02:45]}  Qb6 {[%clk 0:02:54]} 7. d3 {[%clk 0:02:46]}  h6 {[%clk 0:02:48]} 8. cxd5 {[%clk 0:02:45]}  exd5 {[%clk 0:02:47]} 9. Qc2 {[%clk 0:02:45]}  Be7 {[%clk 0:02:45]} 10. Nc3 {[%clk 0:02:45]}  O-O {[%clk 0:02:43]} 11. e4 {[%clk 0:02:45]}  dxe4 {[%clk 0:02:40]} 12. dxe4 {[%clk 0:02:46]}  Bh7 {[%clk 0:02:38]} 13. Be3 {[%clk 0:02:46]}  Qc7 {[%clk 0:02:26]} 14. Rad1 {[%clk 0:02:46]}  Re8 {[%clk 0:02:22]} 15. Nd4 {[%clk 0:02:42]}  Nbd7 {[%clk 0:02:19]} 16. Rfe1 {[%clk 0:02:42]}  a6 {[%clk 0:02:16]} 17. h3 {[%clk 0:02:40]}  Rad8 {[%clk 0:02:13]} 18. a3 {[%clk 0:02:38]}  c5 {[%clk 0:02:01]} 19. Nf5 {[%clk 0:02:37]}  Bxf5 {[%clk 0:01:53]} 20. exf5 {[%clk 0:02:38]}  b5 {[%clk 0:01:53]} 21. Bf4 {[%clk 0:02:36]}  Qb6 {[%clk 0:01:49]} 22. Nd5 {[%clk 0:02:06]}  Nxd5 {[%clk 0:01:46]} 23. Rxd5 {[%clk 0:02:07]}  Nf6 {[%clk 0:01:37]} 24. Rxd8 {[%clk 0:02:07]}  Bxd8 {[%clk 0:01:33]} 25. Rxe8+ {[%clk 0:02:04]}  Nxe8 {[%clk 0:01:34]} 26. Be3 {[%clk 0:01:57]}  Be7 {[%clk 0:01:30]} 27. b4 {[%clk 0:01:57]}  Qf6 {[%clk 0:01:24]} 28. bxc5 {[%clk 0:01:55]}  Qa1+ {[%clk 0:01:23]} 29. Kh2 {[%clk 0:01:52]}  Qxa3 {[%clk 0:01:23]} 30. Qe4 {[%clk 0:01:50]}  Kf8 {[%clk 0:01:19]} 31. Qa8 {[%clk 0:01:48]}  Qd3 {[%clk 0:01:00]} 32. c6 {[%clk 0:01:44]}  Bd6 {[%clk 0:00:55]} 33. f6 {[%clk 0:01:28]}  gxf6 {[%clk 0:00:47]} 34. Bxh6+ {[%clk 0:01:26]}  Ke7 {[%clk 0:00:47]} 35. Qxa6 {[%clk 0:01:09]}  Nc7 {[%clk 0:00:46]} 36. Qc8 {[%clk 0:01:09]}  f5 {[%clk 0:00:36]} 37. Bg5+ {[%clk 0:01:03]}  f6 {[%clk 0:00:36]} 38. Qd7+ {[%clk 0:01:03]}  Kf8 {[%clk 0:00:33]} 39. Bh6+ {[%clk 0:01:04]} 1-0


[Site "https://www.chess.com"]

[Event "Titled Tuesday Blitz March 08 Late 2022"]
[White "Szpar, Milosz"]
[Black "Mikhalsky, Vladimir"]
[WhiteFideId "1184989"]
[BlackFideId "14144352"]
[WhiteElo "2736"]
[BlackElo "2418"]
[Result "1-0"]
[Round "01"]
[TimeControl "180+1"]
[Date "2022.03.09"]
[WhiteClock "0:00:19"]
[BlackClock "0:00:14"]

1. e4 {[%clk 0:02:59]}  g6 {[%clk 0:02:48]} 2. d4 {[%clk 0:02:58]}  Bg7 {[%clk 0:02:47]} 3. Nf3 {[%clk 0:02:56]}  d6 {[%clk 0:02:46]} 4. Bc4 {[%clk 0:02:51]}  a6 {[%clk 0:02:45]} 5. O-O {[%clk 0:02:50]}  e6 {[%clk 0:02:39]} 6. Re1 {[%clk 0:02:47]}  Ne7 {[%clk 0:02:38]} 7. Nbd2 {[%clk 0:02:37]}  b6 {[%clk 0:02:36]} 8. c3 {[%clk 0:02:33]}  Bb7 {[%clk 0:02:36]} 9. Nf1 {[%clk 0:02:28]}  Nd7 {[%clk 0:02:34]} 10. Ng3 {[%clk 0:02:28]}  h6 {[%clk 0:02:34]} 11. Bf4 {[%clk 0:02:17]}  b5 {[%clk 0:02:24]} 12. Bb3 {[%clk 0:02:17]}  Nb6 {[%clk 0:02:24]} 13. Qe2 {[%clk 0:02:12]}  Nc6 {[%clk 0:02:18]} 14. d5 {[%clk 0:02:04]}  exd5 {[%clk 0:01:59]} 15. exd5+ {[%clk 0:02:04]}  Ne7 {[%clk 0:01:59]} 16. Rad1 {[%clk 0:01:40]}  Kf8 {[%clk 0:01:59]} 17. Bc1 {[%clk 0:01:07]}  Bxd5 {[%clk 0:01:49]} 18. h4 {[%clk 0:01:07]}  Bc4 {[%clk 0:01:35]} 19. Bxc4 {[%clk 0:01:03]}  Nxc4 {[%clk 0:01:34]} 20. b3 {[%clk 0:01:03]}  Nb6 {[%clk 0:01:28]} 21. h5 {[%clk 0:00:56]}  Qd7 {[%clk 0:01:12]} 22. hxg6 {[%clk 0:00:51]}  Nxg6 {[%clk 0:01:02]} 23. Nh5 {[%clk 0:00:42]}  Qf5 {[%clk 0:00:56]} 24. Nd4 {[%clk 0:00:39]}  Bxd4 {[%clk 0:00:36]} 25. Rxd4 {[%clk 0:00:39]}  Nd7 {[%clk 0:00:24]} 26. g4 {[%clk 0:00:33]}  Qc5 {[%clk 0:00:19]} 27. Qf3 {[%clk 0:00:29]}  Nde5 {[%clk 0:00:19]} 28. Qxa8+ {[%clk 0:00:29]}  Ke7 {[%clk 0:00:17]} 29. Qf3 {[%clk 0:00:25]}  Kd7 {[%clk 0:00:15]} 30. Qf5+ {[%clk 0:00:22]}  Kc6 {[%clk 0:00:15]} 31. Be3 {[%clk 0:00:20]}  Kb6 {[%clk 0:00:14]} 32. Re4 {[%clk 0:00:19]} 1-0


[Site "https://www.chess.com"]

[Event "Titled Tuesday Blitz March 08 Late 2022"]
[White "Toncheva, Nadya"]
[Black "Mikhailov, Viacheslav"]
[WhiteFideId "2924056"]
[BlackFideId "4187369"]
[WhiteElo "2394"]
[BlackElo "2708"]
[Result "0-1"]
[Round "01"]
[TimeControl "180+1"]
[Date "2022.03.09"]
[WhiteClock "0:00:02"]
[BlackClock "0:00:03"]

1. e4 {[%clk 0:02:59]}  d6 {[%clk 0:02:59]} 2. d4 {[%clk 0:02:59]}  Nf6 {[%clk 0:03:00]} 3. Nc3 {[%clk 0:02:59]}  g6 {[%clk 0:03:00]} 4. Nf3 {[%clk 0:02:58]}  Bg7 {[%clk 0:03:01]} 5. Bc4 {[%clk 0:02:57]}  O-O {[%clk 0:03:01]} 6. O-O {[%clk 0:02:57]}  Bg4 {[%clk 0:03:02]} 7. h3 {[%clk 0:02:57]}  Bxf3 {[%clk 0:03:02]} 8. Qxf3 {[%clk 0:02:58]}  Nc6 {[%clk 0:03:02]} 9. Be3 {[%clk 0:02:55]}  e5 {[%clk 0:03:02]} 10. Rad1 {[%clk 0:02:53]}  exd4 {[%clk 0:03:02]} 11. Bxd4 {[%clk 0:02:53]}  Nxd4 {[%clk 0:03:03]} 12. Rxd4 {[%clk 0:02:54]}  Qe7 {[%clk 0:02:58]} 13. Re1 {[%clk 0:02:51]}  c6 {[%clk 0:02:51]} 14. Rdd1 {[%clk 0:02:46]}  Rad8 {[%clk 0:02:49]} 15. Qg3 {[%clk 0:02:40]}  Rfe8 {[%clk 0:02:48]} 16. f4 {[%clk 0:02:24]}  Nh5 {[%clk 0:02:39]} 17. Qf3 {[%clk 0:02:19]}  Bxc3 {[%clk 0:02:37]} 18. Qxc3 {[%clk 0:01:26]}  Nxf4 {[%clk 0:02:32]} 19. Rf1 {[%clk 0:01:24]}  Qxe4 {[%clk 0:01:20]} 20. Bxf7+ {[%clk 0:00:58]}  Kxf7 {[%clk 0:01:19]} 21. Rxf4+ {[%clk 0:00:58]}  Qxf4 {[%clk 0:01:19]} 22. Rf1 {[%clk 0:00:58]}  Qxf1+ {[%clk 0:01:20]} 23. Kxf1 {[%clk 0:00:59]}  Re7 {[%clk 0:01:14]} 24. Qd4 {[%clk 0:00:51]}  a6 {[%clk 0:01:04]} 25. a4 {[%clk 0:00:48]}  Ke8 {[%clk 0:00:57]} 26. Kg1 {[%clk 0:00:44]}  Kd7 {[%clk 0:00:56]} 27. b4 {[%clk 0:00:41]}  Rde8 {[%clk 0:00:54]} 28. Qb6 {[%clk 0:00:37]}  Ke6 {[%clk 0:00:47]} 29. b5 {[%clk 0:00:34]}  axb5 {[%clk 0:00:45]} 30. axb5 {[%clk 0:00:35]}  cxb5 {[%clk 0:00:43]} 31. Qxb5 {[%clk 0:00:33]}  Rc8 {[%clk 0:00:34]} 32. Kh2 {[%clk 0:00:28]}  Rc6 {[%clk 0:00:26]} 33. Qb3+ {[%clk 0:00:21]}  d5 {[%clk 0:00:25]} 34. Qd3 {[%clk 0:00:18]}  Kd6 {[%clk 0:00:20]} 35. Qg3+ {[%clk 0:00:18]}  Kd7 {[%clk 0:00:19]} 36. Qd3 {[%clk 0:00:18]}  Rc5 {[%clk 0:00:13]} 37. c4 {[%clk 0:00:12]}  Re5 {[%clk 0:00:10]} 38. Qd4 {[%clk 0:00:12]}  Kd6 {[%clk 0:00:09]} 39. cxd5 {[%clk 0:00:12]}  b5 {[%clk 0:00:07]} 40. Qh4 {[%clk 0:00:11]}  Rcxd5 {[%clk 0:00:05]} 41. Qxh7 {[%clk 0:00:10]}  Re6 {[%clk 0:00:05]} 42. Qb7 {[%clk 0:00:09]}  Ke5 {[%clk 0:00:04]} 43. h4 {[%clk 0:00:06]}  Red6 {[%clk 0:00:04]} 44. Kh3 {[%clk 0:00:06]}  Kd4 {[%clk 0:00:04]} 45. g3 {[%clk 0:00:04]}  Kc4 {[%clk 0:00:02]} 46. g4 {[%clk 0:00:04]}  b4 {[%clk 0:00:02]} 47. h5 {[%clk 0:00:03]}  g5 {[%clk 0:00:02]} 48. h6 {[%clk 0:00:03]}  Rxh6+ {[%clk 0:00:02]} 49. Kg3 {[%clk 0:00:04]}  Rhd6 {[%clk 0:00:03]} 50. Qc8+ {[%clk 0:00:04]}  Kb3 {[%clk 0:00:03]} 51. Qb7 {[%clk 0:00:05]}  Rd3+ {[%clk 0:00:03]} 52. Kf2 {[%clk 0:00:05]}  R6d4 {[%clk 0:00:03]} 53. Ke2 {[%clk 0:00:06]}  Kb2 {[%clk 0:00:03]} 54. Qg7 {[%clk 0:00:05]}  b3 {[%clk 0:00:03]} 55. Qa7 {[%clk 0:00:05]}  Kb1 {[%clk 0:00:03]} 56. Qa3 {[%clk 0:00:05]}  b2 {[%clk 0:00:03]} 57. Qa5 {[%clk 0:00:04]}  Rd2+ {[%clk 0:00:03]} 58. Ke1 {[%clk 0:00:04]}  R4d3 {[%clk 0:00:03]} 59. Qa6 {[%clk 0:00:03]}  Kc1 {[%clk 0:00:03]} 60. Qc6+ {[%clk 0:00:03]}  Rc2 {[%clk 0:00:03]} 61. Qe4 {[%clk 0:00:02]}  Rd1# {[%clk 0:00:03]} 0-1


[Site "https://www.chess.com"]

[Event "Titled Tuesday Blitz March 08 Late 2022"]
[White "Uddin, Mubassar"]
[Black "Goltsev, Dmitry"]
[WhiteFideId "2093944"]
[BlackFideId "24176710"]
[WhiteElo "2303"]
[BlackElo "2273"]
[Result "0-1"]
[Round "01"]
[TimeControl "180+1"]
[Date "2022.03.09"]
[WhiteClock "0:01:42"]
[BlackClock "0:02:52"]

1. d4 {[%clk 0:02:59]}  Nf6 {[%clk 0:02:59]} 2. c4 {[%clk 0:02:58]}  e6 {[%clk 0:03:00]} 3. Nc3 {[%clk 0:02:58]}  Bb4 {[%clk 0:03:00]} 4. e3 {[%clk 0:02:59]}  Qe7 {[%clk 0:03:00]} 5. Nf3 {[%clk 0:02:59]}  b6 {[%clk 0:03:01]} 6. Bd3 {[%clk 0:03:00]}  Bb7 {[%clk 0:03:01]} 7. Qc2 {[%clk 0:03:00]}  O-O {[%clk 0:03:01]} 8. O-O {[%clk 0:03:01]}  Bxc3 {[%clk 0:03:01]} 9. bxc3 {[%clk 0:03:00]}  Bxf3 {[%clk 0:03:02]} 10. gxf3 {[%clk 0:03:00]}  d6 {[%clk 0:03:02]} 11. e4 {[%clk 0:02:59]}  Nbd7 {[%clk 0:03:03]} 12. Bg5 {[%clk 0:02:59]}  e5 {[%clk 0:03:03]} 13. Rae1 {[%clk 0:02:57]}  h6 {[%clk 0:03:03]} 14. Bh4 {[%clk 0:02:58]}  g5 {[%clk 0:03:03]} 15. Bg3 {[%clk 0:02:58]}  Nh5 {[%clk 0:03:04]} 16. a4 {[%clk 0:02:52]}  Rfe8 {[%clk 0:03:04]} 17. a5 {[%clk 0:02:52]}  Nf8 {[%clk 0:03:03]} 18. Qa4 {[%clk 0:02:12]}  Ng6 {[%clk 0:03:01]} 19. Qc6 {[%clk 0:02:06]}  Nhf4 {[%clk 0:02:58]} 20. Bb1 {[%clk 0:02:03]}  Qe6 {[%clk 0:02:55]} 21. Kh1 {[%clk 0:01:48]}  Nh4 {[%clk 0:02:54]} 22. Bxh4 {[%clk 0:01:47]}  Qh3 {[%clk 0:02:52]} 23. Rg1 {[%clk 0:01:42]}  Qxf3+ {[%clk 0:02:52]} 0-1


[Site "https://www.chess.com"]